fUST/lending_fUST_20250819
["ID","MTS","AMOUNT","RATE_DAILY","PERIOD"]
[380125810,1755558647314,-460.0,0.00019452,2]
[380125811,1755558647323,-231.24656544,0.00019452,2]
[380125812,1755558647333,-151.0,0.00019452,2]
[380125813,1755558647343,-480.0,0.00019452,2]
[380125814,1755558647353,-480.0,0.00019452,2]
[380125815,1755558647362,-480.0,0.00019452,2]
[380125816,1755558647372,-480.0,0.00019452,2]
[380125817,1755558647382,-480.0,0.00019452,2]
[380125818,1755558647391,-480.0,0.00019452,2]
[380125819,1755558647401,-480.0,0.00019452,2]
[380125820,1755558647410,-480.0,0.00019452,2]
[380125821,1755558647420,-480.0,0.00019452,2]
[380125822,1755558647429,-922.59,0.00019452,2]
[380125823,1755558647439,-480.0,0.00019452,2]
[380125824,1755558647448,-480.0,0.00019452,2]
[380125825,1755558647458,-480.0,0.00019452,2]
[380125826,1755558647467,-480.0,0.00019452,2]
[380125827,1755558647477,-151.0,0.00019452,2]
[380125828,1755558647487,-258.11313872,0.00019452,2]
[380125829,1755558647496,-480.0,0.00019452,2]
[380125830,1755558647506,-480.0,0.00019452,2]
[380125831,1755558647515,-151.0,0.00019452,2]
[380125832,1755558647525,-151.0,0.00019452,2]
[380125833,1755558647535,-151.0,0.00019452,2]
[380125834,1755558647550,-480.0,0.00019452,2]
[380125835,1755558647560,-406.86450591,0.00019452,2]
[380125836,1755558647569,-480.0,0.00019452,2]
[380125837,1755558647582,-864.6,0.00019452,2]
[380125838,1755558647592,-480.0,0.00019452,2]
[380125839,1755558647601,-480.0,0.00019452,2]
[380125840,1755558647611,-480.0,0.00019452,2]
[380125841,1755558647621,-480.0,0.00019452,2]
[380125842,1755558647631,-480.0,0.00019452,2]
[380125843,1755558647641,-562.38,0.00019452,2]
[380125844,1755558647650,-480.0,0.00019452,2]
[380125845,1755558647660,-480.0,0.00019452,2]
[380125846,1755558647670,-480.0,0.00019452,2]
[380125847,1755558647679,-2256.24,0.00019452,2]
[380125848,1755558647694,-443.63675116,0.00019452,2]
[380125849,1755558647707,-480.0,0.00019452,2]
[380125850,1755558647716,-480.0,0.00019452,2]
[380125851,1755558647726,-480.0,0.00019452,2]
[380125852,1755558647736,-957.74,0.00019452,2]
[380125853,1755558647745,-1182.86,0.00019452,2]
[380125854,1755558647755,-480.0,0.00019452,2]
[380125855,1755558647765,-480.0,0.00019452,2]
[380125856,1755558647775,-480.0,0.00019452,2]
[380125857,1755558647785,-901.86,0.00019452,2]
[380125858,1755558647794,-480.0,0.00019452,2]
[380125859,1755558647803,-480.0,0.00019452,2]
[380125860,1755558647812,-829.09,0.00019452,2]
[380125861,1755558647821,-480.0,0.00019452,2]
[380125862,1755558647833,-480.0,0.00019452,2]
[380125863,1755558647843,-473.26741213,0.00019452,2]
[380125864,1755558647852,-480.0,0.00019452,2]
[380125865,1755558647862,-480.0,0.00019452,2]
[380125866,1755558647872,-480.0,0.00019452,2]
[380125867,1755558647882,-453.42667314,0.00019452,2]
[380125868,1755558647891,-769.0,0.00019452,2]
[380125869,1755558647901,-521.24,0.00019452,2]
[380125870,1755558647910,-480.0,0.00019452,2]
[380125871,1755558647920,-534.34,0.00019452,2]
[380125872,1755558647930,-480.0,0.00019452,2]
[380125873,1755558647939,-480.0,0.00019452,2]
[380125874,1755558647949,-642.01,0.00019452,2]
[380125875,1755558647958,-480.0,0.00019452,2]
[380125876,1755558647967,-480.0,0.00019452,2]
[380125877,1755558647976,-480.0,0.00019452,2]
[380125878,1755558647986,-480.0,0.00019452,2]
[380125879,1755558647996,-480.0,0.00019452,2]
[380125880,1755558648006,-748.84,0.00019452,2]
[380125881,1755558648104,-480.0,0.00019452,2]
[380125882,1755558648115,-480.0,0.00019452,2]
[380125883,1755558648125,-443.46134409,0.00019452,2]
[380125884,1755558648135,-6641.81,0.00019452,2]
[380125885,1755558648145,-480.0,0.00019452,2]
[380125886,1755558648154,-963.35,0.00019452,2]
[380125887,1755558648163,-1416.72,0.00019452,2]
[380125888,1755558648173,-480.0,0.00019452,2]
[380125889,1755558648183,-480.0,0.00019452,2]
[380125890,1755558648192,-480.0,0.00019452,2]
[380125891,1755558648202,-480.0,0.00019452,2]
[380125892,1755558648211,-480.0,0.00019452,2]
[380125893,1755558648220,-480.0,0.00019452,2]
[380125894,1755558648230,-991.55,0.00019452,2]
[380125895,1755558648240,-967.01,0.00019452,2]
[380125896,1755558648250,-3550.07,0.00019452,2]
[380125897,1755558648259,-480.0,0.00019452,2]
[380125898,1755558648270,-2158.14,0.00019452,2]
[380125899,1755558648281,-1532.19,0.00019452,2]
[380125900,1755558648290,-480.0,0.00019452,2]
[380125901,1755558648300,-480.0,0.00019452,2]
[380125902,1755558648310,-2343.91,0.00019452,2]
[380125903,1755558648320,-480.0,0.00019452,2]
[380125904,1755558648329,-1994.73,0.00019452,2]
[380125905,1755558648339,-955.99,0.00019452,2]
[380125906,1755558648349,-480.0,0.00019452,2]
[380125907,1755558648358,-840.95,0.00019452,2]
[380125908,1755558648368,-480.0,0.00019452,2]
[380125909,1755558648379,-500.0,0.00019452,2]
[380125910,1755558648389,-480.0,0.00019452,2]
[380125911,1755558648398,-480.0,0.00019452,2]
[380125912,1755558648408,-151.0,0.00019452,2]
[380125913,1755558648418,-151.0,0.00019452,2]
[380125914,1755558648427,-151.0,0.00019452,2]
[380125915,1755558648436,-2162.25,0.00019452,2]
[380125916,1755558648446,-638.23,0.00019452,2]
[380125917,1755558648456,-480.0,0.00019452,2]
[380125918,1755558648466,-480.0,0.00019452,2]
[380125919,1755558648475,-480.0,0.00019452,2]
[380125920,1755558648485,-480.0,0.00019452,2]
[380125921,1755558648495,-480.0,0.00019452,2]
[380125922,1755558648504,-480.0,0.00019452,2]
[380125923,1755558648514,-480.0,0.00019452,2]
[380125924,1755558648524,-480.0,0.00019452,2]
[380125925,1755558648534,-480.0,0.00019452,2]
[380125926,1755558648549,-480.0,0.00019452,2]
[380125927,1755558648558,-480.0,0.00019452,2]
[380125928,1755558648568,-480.0,0.00019452,2]
[380125929,1755558648578,-480.0,0.00019452,2]
[380125930,1755558648589,-480.0,0.00019452,2]
[380125931,1755558648598,-465.32756027,0.00019452,2]
[380125932,1755558648607,-734.0,0.00019452,2]
[380125933,1755558648617,-3550.86,0.00019452,2]
[380125934,1755558648628,-480.0,0.00019452,2]
[380125935,1755558648638,-480.0,0.00019452,2]
[380125936,1755558648647,-480.0,0.00019452,2]
[380125937,1755558648656,-480.23,0.00019452,2]
[380125938,1755558648665,-5588.73,0.00019452,2]
[380125939,1755558648675,-480.0,0.00019452,2]
[380125940,1755558648685,-480.0,0.00019452,2]
[380125941,1755558648695,-480.0,0.00019452,2]
[380125942,1755558648704,-480.0,0.00019452,2]
[380125943,1755558648714,-480.0,0.00019452,2]
[380125944,1755558648723,-719.68,0.00019452,2]
[380125945,1755558648732,-2497.4,0.00019452,2]
[380125946,1755558648742,-480.0,0.00019452,2]
[380125947,1755558648751,-462.08059744,0.00019452,2]
[380125948,1755558648760,-480.0,0.00019452,2]
[380125949,1755558648769,-480.0,0.00019452,2]
[380125950,1755558648778,-480.0,0.00019452,2]
[380125951,1755558648789,-480.0,0.00019452,2]
[380125952,1755558648798,-780.44,0.00019452,2]
[380125953,1755558648808,-851.45,0.00019452,2]
[380125954,1755558648817,-548.06,0.00019452,2]
[380125955,1755558648827,-480.0,0.00019452,2]
[380125956,1755558648837,-480.0,0.00019452,2]
[380125957,1755558648848,-629.9,0.00019452,2]
[380125958,1755558648857,-214.71480021,0.00019452,2]
[380125959,1755558648867,-480.0,0.00019452,2]
[380125960,1755558648876,-155.85171378,0.00019452,2]
[380125961,1755558648885,-151.0,0.00019452,2]
[380125962,1755558648894,-151.0,0.00019452,2]
[380125963,1755558648904,-464.78504946,0.00019452,2]
[380125964,1755558648913,-198.0,0.00019452,2]
[380125965,1755558648922,-480.0,0.00019452,2]
[380125966,1755558648931,-292.34866046,0.00019452,2]
[380125967,1755558648941,-2202.26,0.00019452,2]
[380125968,1755558648950,-480.0,0.00019452,2]
[380125969,1755558648960,-480.0,0.00019452,2]
[380125970,1755558648969,-480.0,0.00019452,2]
[380125971,1755558648979,-500.0,0.00019452,2]
[380125972,1755558648989,-151.0,0.00019452,2]
[380125973,1755558648999,-750.51,0.00019452,2]
[380125974,1755558649008,-2120.9,0.00019452,2]
[380125975,1755558649017,-3550.24,0.00019452,2]
[380125976,1755558649026,-440.0,0.00019452,2]
[380125977,1755558649036,-1842.09,0.00019452,2]
[380125978,1755558649045,-484.78168894,0.00019452,2]
[380125979,1755558649054,-480.0,0.00019452,2]
[380125980,1755558649064,-480.0,0.00019452,2]
[380125981,1755558649073,-2031.55,0.00019452,2]
[380125982,1755558649083,-480.0,0.00019452,2]
[380125983,1755558649092,-500.0,0.00019452,2]
[380125984,1755558649102,-230.11911874,0.00019489,2]
[380125985,1755558649112,-151.0,0.000195,2]
[380125986,1755558649121,-200.0,0.0001956,20]
[380125987,1755558649131,-200.0,0.0001956,20]
[380125988,1755558649141,-200.0,0.0001956,20]
[380125989,1755558649151,-200.0,0.0001956,20]
[380125990,1755558649161,-200.0,0.0001956,20]
[380125991,1755558649171,-200.0,0.0001956,20]
[380125992,1755558649180,-200.0,0.0001956,20]
[380125993,1755558649190,-200.0,0.0001956,20]
[380125994,1755558649199,-200.0,0.0001956,20]
[380125995,1755558649208,-200.0,0.0001956,20]
[380125996,1755558649217,-600.0,0.00019561,20]
[380125997,1755558649227,-151.0,0.000196,2]
[380125998,1755558649236,-230.11911874,0.00019626,2]
[380125999,1755558649245,-1000.0,0.00019626,2]
[380126000,1755558649255,-151.0,0.000197,2]
[380126001,1755558649264,-151.0,0.000197,2]
[380126002,1755558649273,-151.28597799,0.00019714,2]
[380126003,1755558649282,-708.75718689,0.00019721,2]
[380126004,1755558649292,-502.06922985,0.00019721,2]
[380126005,1755558649301,-1000.0,0.00019721,2]
[380126006,1755558649311,-1000.0,0.00019721,2]
[380126007,1755558649321,-751.65738875,0.00019721,2]
[380126008,1755558649331,-1000.0,0.00019721,2]
[380126009,1755558649340,-1000.0,0.00019721,2]
[380126010,1755558649350,-983.75222637,0.00019721,2]
[380126011,1755558649359,-1674.91766879,0.00019721,2]
[380126012,1755558649369,-6331.98,0.00019725,2]
[380126013,1755558649379,-480.0,0.00019725,2]
[380126014,1755558649388,-641.5,0.00019725,2]
[380126015,1755558649398,-897.38517439,0.00019726,2]
[380126016,1755558649407,-151.0,0.00019726,2]
[380126017,1755558649416,-151.0,0.00019726,2]
[380126018,1755558649426,-151.0,0.00019726,2]
[380126019,1755558649435,-151.0,0.00019726,2]
[380126020,1755558649445,-151.0,0.00019726,2]
[380126021,1755558649454,-277.58874705,0.00019726,2]
[380126022,1755558649464,-500.0,0.00019726,2]
[380126023,1755558649473,-151.0,0.00019726,2]
[380126024,1755558649483,-151.0,0.00019726,2]
[380126025,1755558649492,-245.0,0.00019726,2]
[380126026,1755558649501,-151.0,0.00019726,2]
[380126027,1755558649510,-500.0,0.00019726,2]
[380126028,1755558649520,-151.0,0.00019726,2]
[380126029,1755558649529,-480.0,0.00019726,2]
[380126030,1755558649539,-480.0,0.00019726,2]
[380126031,1755558649552,-480.0,0.00019726,2]
[380126032,1755558649562,-581.76111291,0.00019726,2]
[380126033,1755558649571,-609.99034147,0.00019726,2]
[380126034,1755558649581,-480.0,0.00019726,2]
[380126035,1755558649591,-480.0,0.00019726,2]
[380126036,1755558649601,-480.0,0.00019726,2]
[380126037,1755558649611,-484.07982971,0.00019726,2]
[380126038,1755558649621,-480.0,0.00019726,2]
[380126039,1755558649631,-480.0,0.00019726,2]
[380126040,1755558649640,-480.0,0.00019726,2]
[380126041,1755558649650,-480.0,0.00019726,2]
[380126042,1755558649660,-480.0,0.00019726,2]
[380126043,1755558649670,-322.82344749,0.00019726,2]
[380126044,1755558649679,-480.0,0.00019726,2]
[380126045,1755558649689,-480.0,0.00019726,2]
[380126046,1755558649699,-480.0,0.00019726,2]
[380126047,1755558649709,-606.62,0.00019726,2]
[380126048,1755558649718,-480.0,0.00019726,2]
[380126049,1755558649727,-480.0,0.00019726,2]
[380126050,1755558649736,-480.0,0.00019726,2]
[380126051,1755558649746,-480.0,0.00019726,2]
[380126052,1755558649755,-480.0,0.00019726,2]
[380126053,1755558649764,-226.74,0.00019726,2]
[380126054,1755558649774,-480.0,0.00019726,2]
[380126055,1755558649783,-520.0,0.00019726,2]
[380126056,1755558649792,-484.3927932,0.00019726,2]
[380126057,1755558649801,-480.0,0.00019726,2]
[380126058,1755558649811,-480.0,0.00019726,2]
[380126059,1755558649820,-480.0,0.00019726,2]
[380126060,1755558649830,-465.44519012,0.00019726,2]
[380126061,1755558649839,-499.54,0.00019726,2]
[380126062,1755558649848,-480.0,0.00019726,2]
[380126063,1755558649857,-480.0,0.00019726,2]
[380126064,1755558649866,-694.22,0.00019726,2]
[380126065,1755558649875,-639.43,0.00019726,2]
[380126066,1755558649884,-151.0,0.00019726,2]
[380126067,1755558649894,-480.0,0.00019726,2]
[380126068,1755558649903,-151.0,0.00019726,2]
[380126069,1755558649913,-151.0,0.00019726,2]
[380126070,1755558649922,-151.0,0.00019726,2]
[380126071,1755558649932,-694.57,0.00019726,2]
[380126072,1755558649941,-480.0,0.00019726,2]
[380126073,1755558649951,-714.91,0.00019726,2]
[380126074,1755558649961,-151.0,0.00019726,2]
[380126075,1755558649971,-151.0,0.00019726,2]
[380126076,1755558649982,-480.0,0.00019726,2]
[380126077,1755558649991,-480.0,0.00019726,2]
[380126078,1755558650002,-151.0,0.00019726,2]
[380126079,1755558650011,-556.0,0.00019726,2]
[380126080,1755558650104,-151.159913,0.00019726,2]
[380126081,1755558650114,-480.0,0.00019726,2]
[380126082,1755558650126,-151.0,0.00019726,2]
[380126083,1755558650135,-480.0,0.00019726,2]
[380126084,1755558650145,-480.0,0.00019726,2]
[380126085,1755558650155,-151.0,0.00019726,2]
[380126086,1755558650164,-480.0,0.00019726,2]
[380126087,1755558650173,-823.038239,0.00019726,2]
[380126088,1755558650183,-151.0,0.00019726,2]
[380126089,1755558650191,-823.038239,0.00019726,2]
[380126090,1755558650201,-480.0,0.00019726,2]
[380126091,1755558650210,-246.812281,0.00019726,2]
[380126092,1755558650220,-151.0,0.00019726,2]
[380126093,1755558650231,-246.812281,0.00019726,2]
[380126094,1755558650240,-480.0,0.00019726,2]
[380126095,1755558650250,-2126.66,0.00019726,2]
[380126096,1755558650261,-480.0,0.00019726,2]
[380126097,1755558650271,-486.13,0.00019726,2]
[380126098,1755558650281,-198.159442,0.00019726,2]
[380126099,1755558650290,-480.0,0.00019726,2]
[380126100,1755558650300,-198.159442,0.00019726,2]
[380126101,1755558650312,-480.0,0.00019726,2]
[380126102,1755558650322,-627.64,0.00019726,2]
[380126103,1755558650331,-480.0,0.00019726,2]
[380126104,1755558650341,-480.0,0.00019726,2]
[380126105,1755558650351,-480.0,0.00019726,2]
[380126106,1755558650362,-1213.53,0.00019726,2]
[380126107,1755558650376,-480.0,0.00019726,2]
[380126108,1755558650385,-486.52,0.00019726,2]
[380126109,1755558650395,-480.0,0.00019726,2]
[380126110,1755558650404,-151.0,0.00019726,2]
[380126111,1755558650413,-151.0,0.00019726,2]
[380126112,1755558650422,-151.0,0.00019726,2]
[380126113,1755558650431,-480.0,0.00019726,2]
[380126114,1755558650441,-480.0,0.00019726,2]
[380126115,1755558650450,-480.0,0.00019726,2]
[380126116,1755558650459,-231.06741361,0.00019726,2]
[380126117,1755558650468,-151.0,0.00019726,2]
[380126118,1755558650478,-480.0,0.00019726,2]
[380126119,1755558650488,-464.452857,0.00019726,2]
[380126120,1755558650497,-464.452857,0.00019726,2]
[380126121,1755558650506,-151.0,0.00019726,2]
[380126122,1755558650516,-480.0,0.00019726,2]
[380126123,1755558650526,-480.0,0.00019726,2]
[380126124,1755558650535,-151.0,0.00019726,2]
[380126125,1755558650548,-480.0,0.00019726,2]
[380126126,1755558650557,-922.59,0.00019726,2]
[380126127,1755558650567,-480.0,0.00019726,2]
[380126128,1755558650577,-480.0,0.00019726,2]
[380126129,1755558650586,-353.416175,0.00019726,2]
[380126130,1755558650597,-151.0,0.00019726,2]
[380126131,1755558650607,-353.416175,0.00019726,2]
[380126132,1755558650616,-480.0,0.00019726,2]
[380126133,1755558650627,-480.0,0.00019726,2]
[380126134,1755558650637,-151.0,0.00019726,2]
[380126135,1755558650647,-460.0,0.00019726,2]
[380126136,1755558650657,-480.0,0.00019726,2]
[380126137,1755558650668,-166.106957,0.00019726,2]
[380126138,1755558650678,-166.106957,0.00019726,2]
[380126139,1755558650687,-480.0,0.00019726,2]
[380126140,1755558650697,-259.669474,0.00019726,2]
[380126141,1755558650706,-480.0,0.00019726,2]
[380126142,1755558650716,-864.6,0.00019726,2]
[380126143,1755558650725,-151.0,0.00019726,2]
[380126144,1755558650735,-480.0,0.00019726,2]
[380126145,1755558650745,-480.0,0.00019726,2]
[380126146,1755558650754,-179.275693,0.00019726,2]
[380126147,1755558650763,-179.275693,0.00019726,2]
[380126148,1755558650772,-259.669474,0.00019726,2]
[380126149,1755558650782,-151.0,0.00019726,2]
[380126150,1755558650791,-151.0,0.00019726,2]
[380126151,1755558650800,-481.5,0.00019726,2]
[380126152,1755558650809,-151.0,0.00019726,2]
[380126153,1755558650819,-151.0,0.00019726,2]
[380126154,1755558650828,-480.0,0.00019726,2]
[380126155,1755558650837,-174.03,0.00019726,2]
[380126156,1755558650846,-562.38,0.00019726,2]
[380126157,1755558650856,-480.0,0.00019726,2]
[380126158,1755558650866,-480.0,0.00019726,2]
[380126159,1755558650876,-480.0,0.00019726,2]
[380126160,1755558650885,-2256.24,0.00019726,2]
[380126161,1755558650895,-480.0,0.00019726,2]
[380126162,1755558650904,-462.5911655,0.00019726,2]
[380126163,1755558650914,-1675.506171,0.00019726,2]
[380126164,1755558650924,-1675.506171,0.00019726,2]
[380126165,1755558650933,-480.0,0.00019726,2]
[380126166,1755558650942,-957.74,0.00019726,2]
[380126167,1755558650952,-1182.86,0.00019726,2]
[380126168,1755558650961,-675.072759,0.00019726,2]
[380126169,1755558650971,-460.0,0.00019726,2]
[380126170,1755558650980,-675.072759,0.00019726,2]
[380126171,1755558650989,-480.0,0.00019726,2]
[380126172,1755558650998,-901.86,0.00019726,2]
[380126173,1755558651008,-480.0,0.00019726,2]
[380126174,1755558651017,-480.0,0.00019726,2]
[380126175,1755558651027,-558.94,0.00019726,2]
[380126176,1755558651036,-829.09,0.00019726,2]
[380126177,1755558651045,-480.0,0.00019726,2]
[380126178,1755558651055,-480.0,0.00019726,2]
[380126179,1755558651064,-480.0,0.00019726,2]
[380126180,1755558651073,-769.0,0.00019726,2]
[380126181,1755558651083,-521.24,0.00019726,2]
[380126182,1755558651092,-480.0,0.00019726,2]
[380126183,1755558651101,-534.34,0.00019726,2]
[380126184,1755558651110,-480.0,0.00019726,2]
[380126185,1755558651120,-151.0,0.00019726,2]
[380126186,1755558651131,-151.0,0.00019726,2]
[380126187,1755558651140,-480.0,0.00019726,2]
[380126188,1755558651150,-207.102964,0.00019726,2]
[380126189,1755558651159,-642.01,0.00019726,2]
[380126190,1755558651169,-480.0,0.00019726,2]
[380126191,1755558651178,-178.318631,0.00019726,2]
[380126192,1755558651187,-178.318631,0.00019726,2]
[380126193,1755558651196,-480.0,0.00019726,2]
[380126194,1755558651207,-178.318631,0.00019726,2]
[380126195,1755558651216,-178.318631,0.00019726,2]
[380126196,1755558651226,-518.92380147,0.00019726,2]
[380126197,1755558651235,-480.0,0.00019726,2]
[380126198,1755558651244,-480.0,0.00019726,2]
[380126199,1755558651254,-151.0,0.00019726,2]
[380126200,1755558651264,-151.0,0.00019726,2]
[380126201,1755558651273,-748.84,0.00019726,2]
[380126202,1755558651283,-480.0,0.00019726,2]
[380126203,1755558651293,-486.701108,0.00019726,2]
[380126204,1755558651302,-486.701108,0.00019726,2]
[380126205,1755558651312,-6641.81,0.00019726,2]
[380126206,1755558651322,-480.0,0.00019726,2]
[380126207,1755558651331,-486.701108,0.00019726,2]
[380126208,1755558651340,-486.701108,0.00019726,2]
[380126209,1755558651350,-963.35,0.00019726,2]
[380126210,1755558651359,-1416.72,0.00019726,2]
[380126211,1755558651368,-153.763551,0.00019726,2]
[380126212,1755558651378,-480.0,0.00019726,2]
[380126213,1755558651387,-153.763551,0.00019726,2]
[380126214,1755558651396,-547.404671,0.00019726,2]
[380126215,1755558651406,-547.404671,0.00019726,2]
[380126216,1755558651415,-547.404671,0.00019726,2]
[380126217,1755558651424,-547.404671,0.00019726,2]
[380126218,1755558651434,-151.0,0.00019726,2]
[380126219,1755558651443,-153.763551,0.00019726,2]
[380126220,1755558651453,-151.0,0.00019726,2]
[380126221,1755558651463,-153.763551,0.00019726,2]
[380126222,1755558651472,-480.0,0.00019726,2]
[380126223,1755558651481,-443.53734124,0.00019726,2]
[380126224,1755558651491,-151.0,0.00019726,2]
[380126225,1755558651501,-480.0,0.00019726,2]
[380126226,1755558651510,-260.6682,0.00019726,2]
[380126227,1755558651519,-301.72628704,0.00019726,2]
[380126228,1755558651530,-991.55,0.00019726,2]
[380126229,1755558651541,-967.01,0.00019726,2]
[380126230,1755558651553,-3550.07,0.00019726,2]
[380126231,1755558651562,-480.0,0.00019726,2]
[380126232,1755558651571,-151.0,0.00019726,2]
[380126233,1755558651580,-151.0,0.00019726,2]
[380126234,1755558651590,-2158.14,0.00019726,2]
[380126235,1755558651600,-1532.19,0.00019726,2]
[380126236,1755558651610,-480.0,0.00019726,2]
[380126237,1755558651623,-151.0,0.00019726,2]
[380126238,1755558651634,-151.0,0.00019726,2]
[380126239,1755558651643,-2343.91,0.00019726,2]
[380126240,1755558651653,-151.0,0.00019726,2]
[380126241,1755558651663,-151.0,0.00019726,2]
[380126242,1755558651673,-184.24774284,0.00019726,2]
[380126243,1755558651682,-1994.73,0.00019726,2]
[380126244,1755558651691,-151.0,0.00019726,2]
[380126245,1755558651700,-151.0,0.00019726,2]
[380126246,1755558651711,-955.99,0.00019726,2]
[380126247,1755558651720,-480.0,0.00019726,2]
[380126248,1755558651730,-840.95,0.00019726,2]
[380126249,1755558651739,-480.0,0.00019726,2]
[380126250,1755558651749,-151.0,0.00019726,2]
[380126251,1755558651758,-151.0,0.00019726,2]
[380126252,1755558651768,-480.0,0.00019726,2]
[380126253,1755558651777,-480.0,0.00019726,2]
[380126254,1755558651787,-151.0,0.00019726,2]
[380126255,1755558651796,-151.0,0.00019726,2]
[380126256,1755558651805,-578.39244105,0.00019726,2]
[380126257,1755558652037,-1583.85755895,0.00019726,2]
[380126258,1755558652046,-154.768791,0.00019726,2]
[380126259,1755558652055,-154.768791,0.00019726,2]
[380126260,1755558652065,-154.768791,0.00019726,2]
[380126261,1755558652074,-154.768791,0.00019726,2]
[380126262,1755558652084,-90.96727705,0.00019726,2]
[380126263,1755558652109,-108.45380095,0.00019726,2]
[380126264,1755558652119,-199.421078,0.00019726,2]
[380126265,1755558652128,-638.23,0.00019726,2]
[380126266,1755558652137,-199.421078,0.00019726,2]
[380126267,1755558652148,-199.421078,0.00019726,2]
[380126268,1755558652158,-480.0,0.00019726,2]
[380126269,1755558652167,-151.0,0.00019726,2]
[380126270,1755558652177,-249.08017,0.00019726,2]
[380126271,1755558652186,-480.0,0.00019726,2]
[380126272,1755558652195,-480.0,0.00019726,2]
[380126273,1755558652204,-151.0,0.00019726,2]
[380126274,1755558652214,-151.0,0.00019726,2]
[380126275,1755558652223,-544.23376251,0.00019726,2]
[380126276,1755558652232,-469.57066975,0.00019726,2]
[380126277,1755558652241,-480.0,0.00019726,2]
[380126278,1755558652250,-480.0,0.00019726,2]
[380126279,1755558652259,-151.0,0.00019726,2]
[380126280,1755558652269,-151.0,0.00019726,2]
[380126281,1755558652278,-480.0,0.00019726,2]
[380126282,1755558652287,-480.0,0.00019726,2]
[380126283,1755558652296,-480.0,0.00019726,2]
[380126284,1755558652305,-325.0524238,0.00019726,2]
[380126285,1755558652315,-151.0,0.00019726,2]
[380126286,1755558652324,-480.0,0.00019726,2]
[380126287,1755558652334,-151.0,0.00019726,2]
[380126288,1755558652343,-734.0,0.00019726,2]
[380126289,1755558652352,-151.0,0.00019726,2]
[380126290,1755558652361,-3550.86,0.00019726,2]
[380126291,1755558652371,-480.0,0.00019726,2]
[380126292,1755558652379,-1000.0,0.00019726,2]
[380126293,1755558652388,-1000.0,0.00019726,2]
[380126294,1755558652398,-1000.0,0.00019726,2]
[380126295,1755558652407,-151.0,0.00019726,2]
[380126296,1755558652417,-1000.0,0.00019726,2]
[380126297,1755558652426,-1000.0,0.00019726,2]
[380126298,1755558652435,-1000.0,0.00019726,2]
[380126299,1755558652445,-151.0,0.00019726,2]
[380126300,1755558652454,-1000.0,0.00019726,2]
[380126301,1755558652463,-1000.0,0.00019726,2]
[380126302,1755558652473,-1000.0,0.00019726,2]
[380126303,1755558652482,-1000.0,0.00019726,2]
[380126304,1755558652491,-1000.0,0.00019726,2]
[380126305,1755558652501,-1000.0,0.00019726,2]
[380126306,1755558652511,-1000.0,0.00019726,2]
[380126307,1755558652520,-1097.99943,0.00019726,2]
[380126308,1755558652530,-713.428117,0.00019726,2]
[380126309,1755558652539,-713.428117,0.00019726,2]